fUSD/lending_fUSD_20240425
["ID","MTS","AMOUNT","RATE_DAILY","PERIOD"]
[323477117,1714032653228,-691.1155964,0.00012991,2]
[323477118,1714032653238,-812.8789989,0.00012991,2]
[323477119,1714032653248,-934.6424013,0.00012991,2]
[323477120,1714032653257,-1056.4058037,0.00012991,2]
[323477121,1714032653266,-2193.98712007,0.00012995,2]
[323477122,1714032653275,-495.16486114,0.00012996,2]
[323477123,1714032653284,-13773.16482991,0.00012997,2]
[323477124,1714032762224,333.78,9.51e-05,2]
[323477125,1714032982190,180.06,8.918e-05,2]
[323477126,1714033142528,-161.90389832,0.00014,20]
[323477127,1714033182124,-200.0,0.00012498,10]
[323477128,1714033182167,-220.48768969,0.00012772,10]
[323477129,1714033182212,-579.51231031,0.0001337,10]
[323477130,1714033184665,-1000.0,0.0001337,10]
[323477131,1714033186412,-1000.0,0.0001337,10]
[323477132,1714033187443,-76.76768969,0.0001337,10]
[323477133,1714033201304,-152.0,0.00014953,13]
[323477134,1714033223811,-152.0,0.00014856,12]
[323477135,1714033251026,-152.0,0.00014662,10]
[323477136,1714033251058,-152.0,0.00014759,11]
[323477137,1714033265447,317.09,9.225e-05,2]
[323477138,1714033281038,-152.0,0.0001505,14]
[323477139,1714033287270,21227.81269919,0.00025111,120]
[323477140,1714033297796,-152.0,0.00015147,15]
[323477141,1714033306826,-152.0,0.00015244,16]
[323477142,1714033316071,-152.0,0.00015342,17]
[323477145,1714033334678,-152.0,0.00015439,18]
[323477146,1714033742514,301.23,9.207e-05,2]
[323477161,1714033832033,-1140.2418734,0.00011,2]
[323477162,1714033832042,-156.77121027,0.00011043,2]
[323477163,1714033832051,-455.4,0.00011115,2]
[323477164,1714033832059,-931.84402002,0.0001113,2]
[323477165,1714033832070,-68.15597998,0.0001113,2]
[323477166,1714033832079,-150.0,0.00011208,2]
[323477167,1714033832088,-305.27402502,0.00011209,2]
[323477168,1714033832098,-306.88917699,0.00011209,2]
[323477169,1714033832114,-4493.81222611,0.00011209,2]
[323477170,1714033832125,-633.16573653,0.00011209,2]
[323477171,1714033832137,-4069.02801231,0.00011209,2]
[323477172,1714033832151,-8599.99745466,0.00011209,2]
[323477173,1714033832205,-6538.38963302,0.00011209,2]
[323477174,1714033832215,-566.13213472,0.00011209,2]
[323477175,1714033832226,-4147.36848739,0.00011209,2]
[323477176,1714033832236,-441.23700119,0.00011209,2]
[323477177,1714033832261,-542.31677201,0.00011209,2]
[323477178,1714033832272,-22884.31934005,0.00011209,2]
[323477179,1714033832281,-163.76,0.0001138,2]
[323477180,1714033832290,-301.23,0.00011471,2]
[323477181,1714033832299,-156.77121027,0.00011488,2]
[323477182,1714033832308,-2534.44,0.00011488,2]
[323477183,1714033832316,-499.99,0.00011488,2]
[323477184,1714033832325,-2485.3,0.00011489,2]
[323477185,1714033832334,-961.12177568,0.00011638,2]
[323477186,1714033832343,-156.77121027,0.00011933,2]
[323477187,1714033832352,-1261.55,0.00011933,2]
[323477188,1714033832361,-639.91,0.00011977,2]
[323477189,1714033832374,-639.91,0.0001198,2]
[323477190,1714033832383,-639.91,0.00011983,2]
[323477191,1714033832392,-639.91,0.00011986,2]
[323477192,1714033832402,-639.91,0.0001199,2]
[323477193,1714033832412,-639.91,0.00011993,2]
[323477194,1714033832422,-639.91,0.00011996,2]
[323477195,1714033832431,-639.91,0.00011999,2]
[323477197,1714033832440,-2750.0,0.00012,2]
[323477199,1714033832450,-639.91,0.00012002,2]
[323477201,1714033832460,-639.91,0.00012005,2]
[323477203,1714033832469,-639.91,0.00012008,2]
[323477205,1714033832477,-639.91,0.00012012,2]
[323477207,1714033832486,-639.91,0.00012015,2]
[323477209,1714033832494,-639.91,0.00012018,2]
[323477210,1714033832503,-639.91,0.00012021,2]
[323477211,1714033832511,-639.91,0.00012024,2]
[323477212,1714033832520,-639.91,0.00012027,2]
[323477213,1714033832529,-639.91,0.00012031,2]
[323477214,1714033832537,-639.91,0.00012034,2]
[323477215,1714033832547,-639.91,0.00012037,2]
[323477216,1714033832556,-416.0,0.00012052,2]
[323477217,1714033832566,-836.24,0.00012055,2]
[323477218,1714033832575,-1819.66,0.00012055,2]
[323477219,1714033832585,-5000.0,0.0001214,2]
[323477220,1714033832594,-4046.44,0.00012149,2]
[323477221,1714033832603,-604.43,0.00012214,2]
[323477222,1714033832613,-410.1824,0.00012298,2]
[323477223,1714033832623,-1331.0612,0.00012298,2]
[323477224,1714033832634,-6626.8724,0.000123,2]
[323477225,1714033832643,-2500.59,0.0001234,2]
[323477226,1714033832653,-156.77121027,0.00012378,2]
[323477227,1714033832662,-183.85475086,0.00012378,2]
[323477228,1714033832672,-5000.0,0.0001238,2]
[323477229,1714033832681,-5000.0,0.00012381,2]
[323477230,1714033832688,-9581.6901,0.00012398,2]
[323477231,1714033832698,-609.3689,0.00012398,2]
[323477232,1714033832707,-2874.32686538,0.00012398,2]
[323477233,1714033832720,-505.47260619,0.00012398,2]
[323477234,1714033832733,-2033.57,0.00012398,2]
[323477235,1714033832758,-648.56859254,0.00012398,2]
[323477236,1714033832772,-1550.0,0.00012398,2]
[323477237,1714033832785,-643.42,0.00012398,2]
[323477238,1714033832797,-2657.2692505,0.00012398,2]
[323477272,1714033838105,-6395.83989443,0.00012398,2]
[323477274,1714033838116,-1029.27,0.00012398,2]
[323477277,1714033838127,-741.3170906,0.00012398,2]
[323477279,1714033838140,-1000.00663,0.00012398,2]
[323477281,1714033838153,-995.94,0.00012398,2]
[323477285,1714033838174,-5948.24630272,0.00012398,2]
[323477290,1714033838217,-7777.74976624,0.00012398,2]
[323477292,1714033838229,-19840.1776307,0.00012398,2]
[323477320,1714033840241,-6314.40359998,0.00012398,2]
[323477321,1714033840252,-1647.62765516,0.00012398,2]
[323477322,1714033840299,-778.93087633,0.00012398,2]
[323477323,1714033840310,-424.5191321,0.00012398,2]
[323477324,1714033840321,-1341.48264943,0.00012398,2]
[323477325,1714033840356,-6432.8,0.00012398,2]
[323477326,1714033840580,-1344.33106011,0.00012398,2]
[323477339,1714033843158,-21749.22409759,0.00012398,2]
[323477340,1714033843168,-150.0,0.00012452,2]
[323477341,1714033843177,-644.01,0.00012461,2]
[323477342,1714033843186,-569.81320775,0.00012475,2]
[323477343,1714033843195,-500.0,0.00012475,2]
[323477344,1714033843205,-500.0,0.00012475,2]
[323477345,1714033843214,-500.0,0.00012475,2]
[323477346,1714033843223,-500.0,0.00012475,2]
[323477347,1714033843233,-500.0,0.00012475,2]
[323477348,1714033843242,-571.37171296,0.00012476,7]
[323477349,1714033843251,-500.0,0.00012476,2]
[323477350,1714033843261,-500.0,0.00012476,2]
[323477351,1714033843270,-500.0,0.00012476,2]
[323477352,1714033843280,-500.0,0.00012476,2]
[323477353,1714033843289,-500.0,0.00012476,2]
[323477354,1714033843298,-500.0,0.00012476,2]
[323477355,1714033843306,-500.0,0.00012476,2]
[323477356,1714033843316,-500.0,0.00012476,2]
[323477357,1714033843325,-500.0,0.00012476,2]
[323477358,1714033843334,-500.0,0.00012476,2]
[323477359,1714033843343,-663.69,0.00012476,2]
[323477360,1714033843352,-2404.82,0.00012476,2]
[323477361,1714033843362,-500.0,0.00012476,2]
[323477362,1714033843372,-500.0,0.00012476,2]
[323477363,1714033843383,-500.0,0.00012476,2]
[323477364,1714033843392,-500.0,0.00012476,2]
[323477365,1714033843408,-500.0,0.00012476,2]
[323477366,1714033843418,-500.0,0.00012476,2]
[323477367,1714033843427,-500.0,0.00012476,2]
[323477368,1714033843437,-500.0,0.00012476,2]
[323477369,1714033843448,-500.0,0.00012476,2]
[323477370,1714033843463,-500.0,0.00012476,2]
[323477371,1714033843475,-500.0,0.00012476,2]
[323477372,1714033843488,-2160.64,0.00012476,2]
[323477373,1714033843500,-1768.06,0.00012476,2]
[323477374,1714033843512,-500.0,0.00012476,2]
[323477375,1714033843523,-818.68,0.00012476,2]
[323477376,1714033843534,-500.0,0.00012476,2]
[323477377,1714033843544,-500.0,0.00012476,2]
[323477378,1714033843556,-500.0,0.00012476,2]
[323477379,1714033843568,-2358.39,0.00012476,2]
[323477380,1714033843579,-500.0,0.00012476,2]
[323477381,1714033843591,-500.0,0.00012476,2]
[323477382,1714033843604,-500.0,0.00012476,2]
[323477384,1714033843615,-500.0,0.00012476,2]
[323477385,1714033843627,-500.0,0.00012476,2]
[323477386,1714033843638,-500.0,0.00012476,2]
[323477387,1714033843653,-500.0,0.00012476,2]
[323477389,1714033843663,-500.0,0.00012476,2]
[323477390,1714033843673,-500.0,0.00012476,2]
[323477391,1714033843685,-500.0,0.00012476,2]
[323477392,1714033843697,-581.79911738,0.00012476,2]
[323477393,1714033843708,-1194.98,0.00012476,2]
[323477394,1714033843719,-2271.17,0.00012476,2]
[323477395,1714033843730,-10275.64,0.00012476,2]
[323477396,1714033843740,-500.0,0.00012476,2]
[323477397,1714033843752,-500.0,0.00012476,2]
[323477398,1714033843763,-656.57,0.00012476,2]
[323477399,1714033843775,-500.0,0.00012476,2]
[323477400,1714033843787,-500.0,0.00012476,2]
[323477401,1714033843797,-7419.22,0.00012476,2]
[323477402,1714033843806,-500.0,0.00012476,2]
[323477403,1714033843817,-327.84100072,0.00012476,2]
[323477404,1714033843831,-928.11,0.00012476,2]
[323477405,1714033843842,-500.0,0.00012476,2]
[323477406,1714033843853,-500.0,0.00012476,2]
[323477407,1714033843867,-500.0,0.00012476,2]
[323477408,1714033843877,-318.32232602,0.00012476,2]
[323477409,1714033843888,-4764.52,0.00012476,2]
[323477410,1714033843903,-500.0,0.00012476,2]
[323477411,1714033843914,-500.0,0.00012476,2]
[323477412,1714033843924,-803.83,0.00012476,2]
[323477413,1714033843935,-500.0,0.00012476,2]
[323477414,1714033843950,-500.0,0.00012476,2]
[323477415,1714033843961,-500.0,0.00012476,2]
[323477416,1714033843972,-500.0,0.00012476,2]
[323477417,1714033843983,-644.30061042,0.00012476,2]
[323477418,1714033843995,-500.0,0.00012476,2]
[323477419,1714033844007,-500.0,0.00012476,2]
[323477420,1714033844019,-500.0,0.00012476,2]
[323477421,1714033844032,-500.0,0.00012476,2]
[323477422,1714033844044,-500.0,0.00012476,2]
[323477423,1714033844055,-500.0,0.00012476,2]
[323477424,1714033844065,-1366.34,0.00012476,2]
[323477425,1714033844075,-500.0,0.00012476,2]
[323477426,1714033844085,-500.0,0.00012476,2]
[323477427,1714033844095,-500.0,0.00012476,2]
[323477428,1714033844105,-500.0,0.00012476,2]
[323477429,1714033844117,-1440.61,0.00012476,2]
[323477430,1714033844129,-524.66192676,0.00012476,2]
[323477431,1714033844140,-510.7981571,0.00012477,2]
[323477432,1714033844154,-581.53133256,0.00012477,2]
[323477433,1714033844168,-310.75,0.00012477,2]
[323477434,1714033844179,-505.88173815,0.00012477,2]
[323477435,1714033844190,-500.0,0.00012477,2]
[323477436,1714033844200,-546.23852867,0.00012477,2]
[323477437,1714033844210,-630.20856928,0.00012477,2]
[323477438,1714033844219,-520.48392221,0.00012477,2]
[323477439,1714033844230,-505.29447977,0.00012477,2]
[323477440,1714033844240,-518.26789817,0.00012477,2]
[323477441,1714033844250,-491.3398707,0.00012477,2]
[323477442,1714033844261,-533.5030653,0.00012477,2]
[323477443,1714033844271,-500.0,0.00012477,2]
[323477444,1714033844282,-521.42656485,0.00012477,2]
[323477445,1714033844295,-197.92748083,0.00012477,2]
[323477446,1714033844305,-500.0,0.00012477,2]
[323477447,1714033844316,-500.0,0.00012477,2]
[323477448,1714033844326,-500.0,0.00012477,2]
[323477449,1714033844337,-500.0,0.00012477,2]
[323477450,1714033844347,-500.0,0.00012477,2]
[323477451,1714033844358,-500.0,0.00012477,2]
[323477452,1714033844371,-500.0,0.00012477,2]
[323477453,1714033844382,-500.0,0.00012477,2]
[323477454,1714033844397,-500.0,0.00012477,2]
[323477455,1714033844408,-601.33,0.00012477,2]
[323477456,1714033844419,-1410.23,0.00012477,2]
[323477457,1714033844430,-500.0,0.00012477,2]
[323477458,1714033844442,-500.0,0.00012477,2]
[323477459,1714033844453,-500.0,0.00012477,2]
[323477460,1714033844464,-500.0,0.00012477,2]
[323477461,1714033844475,-150.0,0.00012477,2]
[323477462,1714033844486,-500.0,0.00012477,2]
[323477463,1714033844497,-500.0,0.00012477,2]
[323477464,1714033844508,-504.66963269,0.00012477,2]
[323477465,1714033844518,-500.0,0.00012477,2]
[323477466,1714033844529,-500.0,0.00012477,2]
[323477467,1714033844540,-500.0,0.00012477,2]
[323477468,1714033844550,-500.0,0.00012477,2]
[323477469,1714033844560,-500.0,0.00012477,2]
[323477470,1714033844570,-504.39880125,0.00012477,2]
[323477471,1714033844581,-500.0,0.00012477,2]
[323477472,1714033844592,-632.91,0.00012477,2]
[323477473,1714033844602,-500.0,0.00012477,2]
[323477474,1714033844612,-500.0,0.00012477,2]
[323477475,1714033844623,-500.0,0.00012477,2]
[323477476,1714033844633,-500.0,0.00012477,2]
[323477477,1714033844648,-500.0,0.00012477,2]
[323477478,1714033844659,-500.0,0.00012477,2]
[323477479,1714033844669,-500.0,0.00012477,2]
[323477480,1714033844680,-500.0,0.00012477,2]
[323477481,1714033844692,-500.0,0.00012477,2]
[323477482,1714033844702,-500.0,0.00012477,2]
[323477483,1714033844713,-500.0,0.00012477,2]
[323477484,1714033844723,-500.0,0.00012477,2]
[323477485,1714033844734,-500.0,0.00012477,2]
[323477486,1714033844745,-500.0,0.00012477,2]
[323477487,1714033844755,-500.0,0.00012477,2]
[323477488,1714033844766,-500.0,0.00012477,2]
[323477489,1714033844776,-500.0,0.00012477,2]
[323477490,1714033844786,-500.0,0.00012477,2]
[323477491,1714033844797,-500.0,0.00012477,2]
[323477492,1714033844807,-500.0,0.00012477,2]
[323477493,1714033844818,-500.0,0.00012477,2]
[323477494,1714033844829,-500.0,0.00012477,2]
[323477495,1714033844840,-500.0,0.00012477,2]
[323477496,1714033844850,-500.33250874,0.00012477,2]
[323477497,1714033844861,-500.0,0.00012477,2]
[323477498,1714033844872,-276.88780102,0.00012477,2]
[323477499,1714033844883,-505.01285614,0.00012477,2]
[323477500,1714033844896,-500.0,0.00012477,2]
[323477501,1714033844907,-500.0,0.00012477,2]
[323477502,1714033844919,-500.0,0.00012477,2]
[323477503,1714033844930,-500.0,0.00012477,2]
[323477504,1714033844940,-500.0,0.00012477,2]
[323477505,1714033844952,-500.0,0.00012477,2]
[323477506,1714033844963,-500.0,0.00012477,2]
[323477507,1714033844974,-500.0,0.00012477,2]
[323477508,1714033844985,-500.0,0.00012477,2]
[323477509,1714033844997,-504.79373273,0.00012477,2]
[323477510,1714033845007,-500.0,0.00012477,2]
[323477511,1714033845018,-500.0,0.00012477,2]
[323477512,1714033845030,-500.0,0.00012477,2]
[323477513,1714033845042,-538.3440894,0.00012477,2]
[323477514,1714033845054,-500.0,0.00012477,2]
[323477515,1714033845065,-500.0,0.00012477,2]
[323477516,1714033845076,-500.0,0.00012477,2]
[323477517,1714033845087,-500.0,0.00012477,2]
[323477518,1714033845097,-521.70650598,0.00012477,2]
[323477519,1714033845108,-500.0,0.00012477,2]
[323477520,1714033845119,-500.0,0.00012477,2]
[323477521,1714033845130,-500.0,0.00012477,2]
[323477522,1714033845141,-500.0,0.00012477,2]
[323477523,1714033845155,-500.0,0.00012477,2]
[323477524,1714033845166,-500.67697798,0.00012477,2]
[323477525,1714033845177,-500.0,0.00012477,2]
[323477526,1714033845188,-646.80549872,0.00012477,2]
[323477527,1714033845199,-500.0,0.00012477,2]
[323477528,1714033845211,-500.0,0.00012477,2]
[323477529,1714033845222,-500.0,0.00012477,2]
[323477530,1714033845233,-500.0,0.00012477,2]
[323477531,1714033845244,-500.0,0.00012477,2]
[323477532,1714033845256,-500.0,0.00012477,2]
[323477533,1714033845266,-500.0,0.00012477,2]
[323477534,1714033845277,-500.0,0.00012477,2]
[323477535,1714033845289,-500.0,0.00012477,2]
[323477536,1714033845300,-500.0,0.00012477,2]
[323477537,1714033845311,-500.0,0.00012477,2]
[323477538,1714033845323,-500.0,0.00012477,2]
[323477539,1714033845334,-500.0,0.00012477,2]
[323477540,1714033845345,-500.0,0.00012477,2]
[323477541,1714033845356,-500.0,0.00012477,2]
[323477542,1714033845367,-500.0,0.00012477,2]
[323477543,1714033845381,-500.0,0.00012477,2]
[323477544,1714033845392,-500.0,0.00012477,2]
[323477545,1714033845405,-500.0,0.00012477,2]
[323477546,1714033845416,-500.0,0.00012477,2]
[323477547,1714033845427,-500.0,0.00012477,2]
[323477548,1714033845438,-500.0,0.00012477,2]
[323477549,1714033845449,-500.0,0.00012477,2]
[323477550,1714033845460,-1354.05,0.00012477,2]
[323477551,1714033845471,-500.0,0.00012477,2]
[323477552,1714033845482,-506.365368,0.00012477,2]
[323477553,1714033845494,-500.0,0.00012477,2]
[323477554,1714033845505,-504.35759875,0.00012477,2]
[323477555,1714033845516,-500.0,0.00012477,2]
[323477556,1714033845526,-500.0,0.00012477,2]
[323477557,1714033845537,-500.0,0.00012477,2]
[323477558,1714033845547,-500.0,0.00012477,2]
[323477559,1714033845558,-500.0,0.00012477,2]
[323477560,1714033845568,-500.0,0.00012477,2]
[323477561,1714033845579,-500.0,0.00012477,2]
[323477562,1714033845590,-500.0,0.00012477,2]
[323477563,1714033845601,-164.70946529,0.00012477,2]
[323477564,1714033845612,-500.0,0.00012477,2]
[323477565,1714033845623,-500.0,0.00012477,2]
[323477566,1714033845634,-500.0,0.00012477,2]
[323477567,1714033845646,-500.0,0.00012477,2]
[323477568,1714033845657,-500.0,0.00012477,2]
[323477569,1714033845668,-500.0,0.00012477,2]
[323477570,1714033845679,-500.0,0.00012477,2]
[323477571,1714033845690,-500.0,0.00012477,2]
[323477572,1714033845701,-500.0,0.00012477,2]
[323477573,1714033845711,-500.0,0.00012477,2]
[323477574,1714033845722,-500.0,0.00012477,2]
[323477575,1714033845732,-500.0,0.00012477,2]
[323477576,1714033845743,-507.1984282,0.00012477,2]
[323477577,1714033845754,-519.52102298,0.00012477,2]
[323477578,1714033845764,-286.77250884,0.00012477,2]
[323477581,1714033845774,-500.0,0.00012477,2]
[323477583,1714033845785,-500.0,0.00012477,2]
[323477585,1714033845795,-500.0,0.00012477,2]
[323477587,1714033845805,-500.0,0.00012477,2]
[323477588,1714033845816,-469.39812454,0.00012477,2]
[323477589,1714033845827,-500.0,0.00012477,2]
[323477590,1714033845838,-500.0,0.00012477,2]
[323477591,1714033845849,-500.0,0.00012477,2]
[323477592,1714033845860,-500.0,0.00012477,2]
[323477594,1714033845873,-568.81667011,0.00012477,2]
[323477595,1714033845884,-500.0,0.00012477,2]
[323477597,1714033845896,-500.0,0.00012477,2]
[323477598,1714033845906,-500.0,0.00012477,2]
[323477599,1714033845918,-500.0,0.00012477,2]
[323477600,1714033845929,-500.0,0.00012477,2]
[323477602,1714033845939,-645.84820781,0.00012477,2]
[323477604,1714033845950,-500.0,0.00012477,2]
[323477607,1714033845960,-500.0,0.00012477,2]
[323477609,1714033845970,-500.0,0.00012477,2]
[323477610,1714033845981,-500.0,0.00012477,2]
[323477617,1714033846322,-500.0,0.00012477,2]
[323477618,1714033846340,-500.0,0.00012477,2]
[323477619,1714033846350,-500.0,0.00012477,2]
[323477620,1714033846359,-500.0,0.00012477,2]
[323477621,1714033846370,-500.0,0.00012477,2]
[323477622,1714033846383,-500.0,0.00012477,2]
[323477623,1714033846393,-500.0,0.00012477,2]
[323477624,1714033846405,-500.0,0.00012477,2]
[323477625,1714033846414,-500.0,0.00012477,2]
[323477626,1714033846424,-500.0,0.00012477,2]
[323477627,1714033846433,-500.0,0.00012477,2]
[323477628,1714033846443,-500.0,0.00012477,2]
[323477630,1714033846452,-330.5747227,0.00012477,2]
[323477632,1714033846463,-500.0,0.00012477,2]
[323477633,1714033846473,-231.89703181,0.00012477,2]
[323477634,1714033846482,-500.0,0.00012477,2]
[323477635,1714033846491,-330.73777283,0.00012477,2]
[323477636,1714033846501,-500.0,0.00012477,2]
[323477638,1714033846510,-500.0,0.00012477,2]
[323477639,1714033846519,-500.0,0.00012477,2]
[323477640,1714033846528,-500.0,0.00012477,2]
[323477641,1714033846538,-500.0,0.00012477,2]
[323477642,1714033846547,-500.0,0.00012477,2]
[323477643,1714033846556,-500.0,0.00012477,2]
[323477645,1714033846565,-500.0,0.00012477,2]
[323477646,1714033846575,-500.0,0.00012477,2]
[323477647,1714033846585,-500.0,0.00012477,2]
[323477648,1714033846595,-508.37,0.00012477,2]
[323477649,1714033846604,-500.0,0.00012477,2]
[323477650,1714033846614,-500.0,0.00012477,2]
[323477651,1714033846623,-500.0,0.00012477,2]
[323477652,1714033846633,-500.0,0.00012477,2]
[323477653,1714033846643,-500.0,0.00012477,2]
[323477654,1714033846654,-500.0,0.00012477,2]
[323477655,1714033846663,-500.0,0.00012477,2]
[323477656,1714033846673,-500.0,0.00012477,2]
[323477657,1714033846682,-500.0,0.00012477,2]
[323477658,1714033846692,-500.0,0.00012477,2]
[323477659,1714033846703,-500.0,0.00012477,2]
[323477660,1714033846712,-500.0,0.00012477,2]
[323477661,1714033846723,-500.0,0.00012477,2]
[323477662,1714033846733,-500.0,0.00012477,2]
[323477663,1714033846742,-500.0,0.00012477,2]
[323477664,1714033846751,-500.0,0.00012477,2]
[323477665,1714033846761,-500.0,0.00012477,2]
[323477666,1714033846770,-500.0,0.00012477,2]
[323477667,1714033846779,-500.0,0.00012477,2]
[323477668,1714033846788,-500.0,0.00012477,2]
[323477669,1714033846798,-500.0,0.00012477,2]
[323477670,1714033846807,-500.0,0.00012477,2]
[323477671,1714033846816,-501.15774516,0.00012477,2]
[323477672,1714033846826,-1252.52,0.00012477,2]
[323477673,1714033846835,-500.0,0.00012477,2]
[323477674,1714033846845,-500.0,0.00012477,2]
[323477675,1714033846853,-501.5021457,0.00012477,2]
[323477676,1714033846863,-4547.11,0.00012477,2]
[323477677,1714033846873,-501.54001907,0.00012477,2]
[323477678,1714033846882,-521.29091416,0.00012477,2]
[323477679,1714033846891,-500.0,0.00012477,2]
[323477680,1714033846903,-500.0,0.00012477,2]
[323477681,1714033846913,-500.0,0.00012477,2]
[323477682,1714033846923,-500.0,0.00012477,2]
[323477683,1714033846932,-500.0,0.00012477,2]
[323477684,1714033846942,-300.51276267,0.00012477,2]
[323477685,1714033846953,-500.0,0.00012477,2]
[323477686,1714033846963,-500.0,0.00012477,2]
[323477687,1714033846972,-500.0,0.00012477,2]
[323477688,1714033846981,-986.32,0.00012477,2]
[323477689,1714033846991,-623.47918101,0.00012477,2]
[323477690,1714033847000,-500.0,0.00012477,2]
[323477691,1714033847010,-3758.97,0.00012477,2]
[323477692,1714033847019,-500.0,0.00012477,2]
[323477693,1714033847031,-500.0,0.00012477,2]
[323477694,1714033847041,-3274.62,0.00012477,2]
[323477695,1714033847051,-500.0,0.00012477,2]
[323477696,1714033847061,-500.0,0.00012477,2]
[323477697,1714033847070,-500.0,0.00012477,2]
[323477698,1714033847079,-500.0,0.00012477,2]
[323477699,1714033847089,-543.21,0.00012477,2]
[323477700,1714033847099,-500.0,0.00012477,2]
[323477701,1714033847109,-500.0,0.00012477,2]
[323477702,1714033847119,-500.0,0.00012477,2]
[323477703,1714033847130,-500.0,0.00012477,2]
[323477704,1714033847139,-639.08,0.00012477,2]
[323477705,1714033847149,-500.0,0.00012477,2]
[323477706,1714033847158,-500.0,0.00012477,2]
[323477707,1714033847168,-500.0,0.00012477,2]
[323477708,1714033847177,-500.0,0.00012477,2]
[323477709,1714033847186,-500.0,0.00012477,2]
[323477710,1714033847196,-500.0,0.00012477,2]
[323477711,1714033847205,-500.0,0.00012477,2]
[323477712,1714033847214,-500.0,0.00012477,2]
[323477713,1714033847223,-500.0,0.00012477,2]
[323477714,1714033847233,-228.86445671,0.00012477,2]
[323477715,1714033847242,-500.0,0.00012477,2]
[323477716,1714033847251,-500.0,0.00012477,2]
[323477717,1714033847261,-500.23238075,0.00012477,2]
[323477718,1714033847271,-500.0,0.00012477,2]
[323477719,1714033847281,-500.0,0.00012477,2]
[323477720,1714033847290,-500.0,0.00012477,2]
[323477721,1714033847299,-269.6727462,0.00012477,2]
[323477722,1714033847308,-501.1095874,0.00012477,2]
[323477723,1714033847317,-500.0,0.00012477,2]
[323477724,1714033847326,-500.11071313,0.00012477,2]
[323477725,1714033847335,-500.0,0.00012477,2]
[323477726,1714033847345,-508.85312234,0.00012477,2]
[323477727,1714033847354,-342.88110796,0.00012477,2]
[323477728,1714033847364,-501.60475036,0.00012477,2]
[323477729,1714033847375,-501.36030285,0.00012477,2]
[323477730,1714033847385,-500.0,0.00012477,2]
[323477731,1714033847396,-500.0,0.00012477,2]
[323477732,1714033847406,-500.0,0.00012477,2]
[323477733,1714033847415,-500.17300362,0.00012477,2]
[323477734,1714033847424,-500.0,0.00012477,2]
[323477735,1714033847433,-500.0,0.00012477,2]
[323477736,1714033847442,-583.09771851,0.00012477,2]
[323477737,1714033847454,-500.0,0.00012477,2]
[323477738,1714033847463,-500.89714865,0.00012477,2]
[323477739,1714033847473,-500.81722045,0.00012477,2]
[323477740,1714033847482,-513.17812748,0.00012477,2]
[323477741,1714033847492,-387.18494573,0.00012478,2]
[323477742,1714033847501,-681.85745358,0.00012478,2]
[323477743,1714033847511,-500.0,0.00012478,2]
[323477744,1714033847522,-348.90282332,0.00012478,2]
[323477745,1714033847531,-500.0,0.00012478,2]
[323477746,1714033847542,-485.28690856,0.00012478,2]
[323477747,1714033847554,-500.0,0.00012478,2]
[323477748,1714033847563,-400.0,0.00012478,2]